bitfinex-derivatives/quotes_SOLF0:USTF0_20260108
["timestamp","ask_amount","ask_price","bid_price","bid_amount"]
[1767905732492,0.3089882,137.83,137.73,1.80473952]
[1767905732993,0.05245307,137.8,137.73,1.80473952]
[1767905733685,0.05245307,137.8,137.73,8.34543952]
[1767905734286,0.05245307,137.8,137.75,1.80473952]
[1767905735587,0.05245307,137.8,137.76,6.5395]
[1767905737695,0.05245307,137.8,137.77,6.5391]
[1767905737998,0.05245307,137.8,137.77,6.58522993]
[1767905739098,0.00388136,137.8,137.77,6.58522993]
[1767905741095,13.34205314,137.84,137.79,6.538]
[1767905741393,13.34205314,137.84,137.79,1.80473952]
[1767905741902,13.34205314,137.84,137.79,87.62473952]
[1767905742196,5.314e-05,137.84,137.8,101.6974]
[1767905742383,5.314e-05,137.84,137.8,187.5174]
[1767905742591,5.314e-05,137.84,137.8,187.57129124]
[1767905742980,5.314e-05,137.84,137.82,6.5364]
[1767905743186,0.32610817,137.9,137.82,6.5364]
[1767905743187,0.32610817,137.9,137.83,1.80473952]
[1767905743389,0.32610817,137.9,137.83,85.82]
[1767905743592,0.32610817,137.9,137.82,85.82]
[1767905743794,0.32610817,137.9,137.8,103.50213952]
[1767905743795,2.13084769,137.9,137.8,103.50213952]
[1767905743984,2.13084769,137.88,137.81,92.357]
[1767905744191,0.32610817,137.88,137.81,85.82]
[1767905744400,0.05280829,137.86,137.81,85.82]
[1767905745793,0.05280829,137.86,137.82,6.5367]
[1767905747995,0.05280829,137.86,137.73,114.829]
[1767905747996,0.37891646,137.86,137.73,114.829]
[1767905748201,0.37891646,137.86,137.77,85.8]
[1767905748398,0.32610817,137.86,137.77,85.8]
[1767905748802,0.04960367,137.83,137.77,85.8]
[1767905749696,0.04960367,137.83,137.79,6.5381]
[1767905754097,0.04960367,137.83,137.77,92.3387]
[1767905754403,0.04960367,137.83,137.77,85.8]
[1767905755799,0.04960367,137.83,137.78,6.5386]
[1767905756305,0.04960367,137.83,137.79,6.5381]
[1767905759293,0.04960367,137.83,137.78,6.5386]
[1767905760803,6.91201184,137.83,137.77,85.8]
[1767905761107,6.91201184,137.83,137.76,6.5391]
[1767905761108,0.32610817,137.82,137.76,6.5391]
[1767905761307,6.86290817,137.82,137.76,6.5391]
[1767905762396,0.32610817,137.82,137.77,6.5391]
[1767905763306,0.05199439,137.81,137.77,6.5391]
[1767905765100,0.05199439,137.81,137.78,6.5386]
[1767905765404,6.5348,137.87,137.78,0.04861997]
[1767905765606,0.31773203,137.88,137.82,6.5366]
[1767905766601,0.31773203,137.88,137.84,0.04743592]
[1767905767894,6.85163203,137.88,137.8,6.5373]
[1767905768095,0.05289519,137.87,137.79,85.78]
[1767905769103,0.31649479,137.86,137.79,92.3177]
[1767905769300,0.31649479,137.86,137.79,85.78]
[1767905769897,0.05244966,137.84,137.79,85.78]
[1767905770192,0.05244966,137.84,137.81,6.5371]
[1767905772605,0.00275355,137.84,137.81,6.5371]
[1767905772999,0.00275355,137.84,137.81,6.59257359]
[1767905773202,0.00275355,137.84,137.82,6.5367]
[1767905774104,6.84889479,137.92,137.84,6.5356]
[1767905774311,6.84889479,137.92,137.82,101.6827]
[1767905774604,0.31649479,137.92,137.82,85.78]
[1767905774811,0.31649479,137.9,137.82,85.78]
[1767905775607,0.31649479,137.89,137.83,6.5362]
[1767905784322,0.31649479,137.91,137.82,101.6825]
[1767905785626,0.31649479,137.91,137.85,6.5348]
[1767905787125,0.31649479,137.91,137.86,6.5348]
[1767905787327,6.5323,137.92,137.86,6.5348]
[1767905787627,92.60799479,137.94,137.86,6.5348]
[1767905787823,0.31649479,137.93,137.85,6.5353]
[1767905788330,0.31649479,137.91,137.84,6.5358]
[1767905788625,0.31649479,137.91,137.8,9.08859793]
[1767905789525,6.5337,137.89,137.82,6.5363]
[1767905790232,0.31649479,137.9,137.83,6.5362]
[1767905790618,0.31649479,137.88,137.79,9.08859793]
[1767905790815,0.31649479,137.84,137.75,9.08859793]
[1767905791024,0.31649479,137.84,137.74,9.08859793]
[1767905792614,6.5363,137.83,137.76,6.5395]
[1767905794428,6.5368,137.82,137.73,9.08859793]
[1767905795530,6.5368,137.82,137.75,6.54]
[1767905795723,0.30948854,137.82,137.73,9.08859793]
[1767905795928,0.30948854,137.81,137.71,9.08859793]
[1767905796130,0.30948854,137.81,137.71,6.5416]
[1767905796332,6.84778854,137.79,137.71,6.5416]
[1767905796923,3.12045545,137.81,137.72,6.5414]
[1767905797726,9.65805545,137.81,137.73,6.5409]
[1767905798427,6.5365,137.83,137.72,101.7566]
[1767905798832,6.84598854,137.83,137.72,101.7566]
[1767905799638,6.84598854,137.83,137.75,6.54]
[1767905801335,6.84628854,137.82,137.75,6.54]
[1767905802639,0.30948854,137.82,137.75,6.54]
[1767905803543,6.84628854,137.82,137.75,6.54]
[1767905803847,6.84628854,137.82,137.73,6.5406]
[1767905804027,0.30948854,137.82,137.73,6.5406]
[1767905804832,0.30948854,137.8,137.73,6.5406]
[1767905808537,6.84748854,137.8,137.71,87.58117341]
[1767905808742,2.11066195,137.79,137.69,1.80117341]
[1767905809342,2.11066195,137.79,137.74,0.05444324]
[1767905809543,6.5388,137.78,137.74,0.05444324]
[1767905811243,6.84828854,137.78,137.74,0.05444324]
[1767905811444,6.5391,137.77,137.69,1.80117341]
[1767905811639,6.59018229,137.77,137.69,1.80117341]
[1767905812346,0.05108229,137.77,137.71,6.5419]
[1767905813040,6.59028229,137.77,137.67,187.5911]
[1767905813245,6.59028229,137.77,137.68,1.80117341]
[1767905813547,6.5392,137.77,137.68,1.80117341]
[1767905813950,0.05404019,137.74,137.68,1.80117341]
[1767905814550,0.05404019,137.74,137.7,6.5424]
[1767905815248,0.05404019,137.74,137.68,1.80117341]
[1767905816551,0.05404019,137.74,137.7,6.5422]
[1767905817645,0.05404019,137.74,137.67,85.8]
[1767905818452,0.05404019,137.74,137.68,6.5431]
[1767905818646,0.05404019,137.74,137.67,85.8]
[1767905819742,0.05404019,137.74,137.69,6.5429]
[1767905820950,0.05404019,137.74,137.68,6.5434]
[1767905821150,0.30948854,137.73,137.7,0.04750384]
[1767905821454,2.11066195,137.73,137.63,101.8234]
[1767905821643,0.30948854,137.73,137.63,101.8234]
[1767905821850,2.11066195,137.73,137.63,101.8234]
[1767905822546,8.65166195,137.73,137.66,6.5439]
[1767905822748,0.05569682,137.69,137.66,6.5439]
[1767905823255,8.65166195,137.73,137.66,6.5439]
[1767905824755,2.11066195,137.73,137.67,6.5437]
[1767905825053,85.82,137.74,137.67,6.5437]
[1767905825245,92.3608,137.74,137.67,6.5437]
[1767905825556,0.05097885,137.71,137.69,0.04682762]
[1767905826457,0.05097885,137.71,137.67,6.5437]
[1767905829346,0.35999549,137.71,137.65,6.5444]
[1767905829759,0.30901664,137.71,137.65,6.5444]
[1767905830256,0.05081864,137.69,137.65,6.5444]
[1767905832551,0.05081864,137.69,137.63,6.5453]
[1767905832758,2.16456197,137.69,137.6,87.64117341]
[1767905832956,6.85646992,137.67,137.6,92.3868]
[1767905833160,6.85646992,137.67,137.6,6.5468]
[1767905833562,0.0485043,137.65,137.6,6.5468]
[1767905834262,0.0485043,137.65,137.61,6.5466]
[1767905835265,0.31256992,137.7,137.62,1.80117341]
[1767905836661,0.31256992,137.7,137.64,6.5452]
[1767905838570,0.31256992,137.7,137.65,6.5447]
[1767905845161,0.31256992,137.7,137.64,6.5453]
[1767905847471,0.04634387,137.68,137.64,6.5453]
[1767905849967,0.04634387,137.68,137.61,8.88738011]
[1767905850162,0.04634387,137.68,137.6,96.54855352]
[1767905850362,0.31256992,137.67,137.58,8.88738011]
[1767905850960,0.31256992,137.66,137.58,8.88738011]
[1767905851271,0.04854246,137.64,137.57,112.55335352]
[1767905852571,0.04854246,137.64,137.6,6.5472]
[1767905853766,0.04854246,137.64,137.59,6.5475]
[1767905861370,0.04854246,137.64,137.59,1.80117341]
[1767905862574,0.04854246,137.64,137.61,6.5467]
[1767905870282,0.04854246,137.64,137.6,6.5472]
[1767905873282,0.36526315,137.64,137.56,94.74738011]
[1767905873477,0.36526315,137.64,137.56,85.86]
[1767905873886,0.36526315,137.64,137.55,8.88738011]
[1767905874487,0.31672069,137.64,137.55,8.88738011]
[1767905874688,0.31672069,137.64,137.57,6.5485]
[1767905876676,0.31672069,137.64,137.58,6.548]
[1767905876880,9.68223479,137.65,137.58,6.548]
[1767905878489,0.31672069,137.64,137.58,6.548]
[1767905881190,0.31672069,137.63,137.56,6.5487]
[1767905881991,0.31672069,137.62,137.56,6.5487]
[1767905882379,0.31672069,137.62,137.57,6.5486]
[1767905882584,6.85994461,137.64,137.57,6.5486]
[1767905886891,6.85994461,137.64,137.58,6.5481]
[1767905888282,9.67985871,137.66,137.55,110.76458011]
[1767905888482,0.31464461,137.68,137.57,110.75538011]
[1767905888686,0.31464461,137.68,137.58,110.74498011]
[1767905889194,0.31464461,137.68,137.61,6.5467]
[1767905891997,6.85824461,137.68,137.61,6.5467]
[1767905893298,0.29920965,137.7,137.6,8.88738011]
[1767905893500,0.29920965,137.7,137.61,8.88738011]
[1767905893689,88.7204141,137.72,137.66,6.5442]
[1767905893690,0.29920965,137.72,137.66,6.5442]
[1767905893903,0.29920965,137.74,137.64,8.88738011]
[1767905894094,0.29920965,137.74,137.65,8.88738011]
[1767905894592,0.29920965,137.74,137.67,6.5437]
[1767905897109,0.29920965,137.73,137.67,6.5437]
[1767905897900,0.29920965,137.7,137.65,8.88738011]
[1767905898098,0.29920965,137.7,137.64,6.5452]
[1767905899706,6.84080965,137.72,137.64,6.5452]
[1767905903303,6.5416,137.72,137.64,6.5452]
[1767905905812,6.5416,137.72,137.65,6.5447]
[1767905906804,6.542,137.71,137.61,190.5361141]
[1767905907604,6.542,137.71,137.64,6.5452]
[1767905909520,6.542,137.71,137.65,6.5448]
[1767905909707,0.29920965,137.72,137.65,6.5448]
[1767905910605,6.84080965,137.72,137.65,6.5448]
[1767905921016,0.3113763,137.71,137.65,6.5448]
[1767905921610,6.8534763,137.71,137.65,6.5448]
[1767905922613,6.8534763,137.71,137.64,6.5453]
[1767905922818,0.3113763,137.7,137.64,6.5453]
[1767905928422,0.3113763,137.69,137.64,6.5453]
[1767905929025,0.3113763,137.71,137.61,94.76738011]
[1767905929222,0.3113763,137.71,137.62,8.88738011]
[1767905930528,0.3113763,137.71,137.65,6.5448]
[1767905930825,1.80341239,137.72,137.63,8.88738011]
[1767905931530,8.34491239,137.72,137.66,6.5442]
[1767905932032,8.65291468,137.72,137.66,6.5442]
[1767905932338,0.30800229,137.69,137.64,15.43218011]
[1767905932637,0.30800229,137.69,137.61,94.76738011]
[1767905932831,0.30800229,137.69,137.62,8.88738011]
[1767905933536,0.30800229,137.69,137.63,6.5457]
[1767905934536,6.85100229,137.69,137.63,6.5457]
[1767905935440,0.30800229,137.69,137.63,6.5457]
[1767905935636,0.30800229,137.69,137.63,15.43308011]
[1767905937141,85.86,137.72,137.62,8.88738011]
[1767905937142,2.11141468,137.68,137.62,8.88738011]
[1767905937433,2.11141468,137.68,137.61,19.99255727]
[1767905937434,0.30800229,137.67,137.61,15.43368011]
[1767905938231,0.30800229,137.67,137.62,8.88738011]
[1767905938640,8.34681239,137.68,137.62,15.43348011]
[1767905940346,1.80341239,137.72,137.63,8.88738011]
[1767905940534,0.30800229,137.73,137.67,8.88738011]
[1767905940734,6.85020229,137.71,137.65,15.43208011]
[1767905941048,0.30800229,137.71,137.65,15.43208011]
[1767905941248,8.34491239,137.72,137.66,6.5443]
[1767905941940,8.34491239,137.72,137.65,8.88738011]
[1767905942144,8.65291468,137.72,137.65,8.88738011]
[1767905943539,6.84950229,137.72,137.65,15.43218011]
[1767905944445,8.66765208,137.71,137.65,8.88738011]
[1767905944637,0.32223969,137.7,137.64,8.88738011]
[1767905944837,0.32223969,137.63,137.5,120.0953089]
[1767905945038,1.80341239,137.58,137.47,101.9393]
[1767905945245,1.80341239,137.54,137.44,15.14546553]
[1767905945445,1.80341239,137.52,137.44,13.34205314]
[1767905945648,2.12565208,137.52,137.44,13.34205314]
[1767905945947,85.86,137.51,137.44,13.34205314]
[1767905946148,0.32223969,137.52,137.44,115.30215314]
[1767905946341,86.18223969,137.52,137.44,115.30215314]
[1767905947262,86.18223969,137.52,137.46,6.5536]
[1767905947960,2.12565208,137.51,137.44,13.34205314]
[1767905948164,85.88,137.5,137.44,13.34205314]
[1767905948548,0.32223969,137.54,137.47,101.9417]
[1767905948848,1.80341239,137.56,137.48,101.9342]
[1767905949550,1.80341239,137.56,137.5,6.5517]
[1767905949744,0.32223969,137.57,137.5,6.5517]
[1767905950043,87.70341239,137.59,137.5,103.71981239]
[1767905950244,87.70341239,137.59,137.52,6.5507]
[1767905950454,85.9,137.59,137.52,6.5507]
[1767905951057,86.22223969,137.63,137.52,101.9004]
[1767905951356,86.22223969,137.63,137.5,101.9164]
[1767905951357,0.32223969,137.62,137.51,101.9091]
[1767905951556,0.32223969,137.6,137.51,101.9091]
[1767905951756,0.32223969,137.6,137.53,6.5503]
[1767905951953,101.8053,137.66,137.53,6.5503]
[1767905951954,0.32223969,137.67,137.56,101.8753]
[1767905952154,86.22223969,137.64,137.55,101.8818]
[1767905952355,0.32223969,137.64,137.55,101.8818]
[1767905953656,0.32223969,137.64,137.57,6.5484]
[1767905953862,0.32223969,137.64,137.52,85.92]
[1767905954158,0.43608882,137.61,137.48,101.9283]
[1767905954350,106.67106126,137.62,137.5,6.5516]
[1767905954351,0.43608882,137.59,137.5,6.5516]
[1767905954754,0.43608882,137.58,137.45,101.9539]
[1767905955461,0.43608882,137.56,137.47,6.553]
[1767905955661,86.35608882,137.56,137.47,6.553]
[1767905958453,4.83956126,137.59,137.48,101.9321]
[1767905958658,86.37608882,137.59,137.49,101.9272]
[1767905959364,0.43608882,137.58,137.5,6.5516]
[1767905963260,85.94,137.59,137.51,6.5513]
[1767905963569,0.43608882,137.62,137.51,101.9052]
[1767905963761,0.43608882,137.61,137.53,6.5503]
[1767905966156,0.43608882,137.6,137.53,6.5503]
[1767905968562,0.43608882,137.57,137.47,101.9398]
[1767905968761,85.94,137.56,137.47,101.9398]
[1767905969660,85.94,137.56,137.5,6.5519]
[1767905970561,0.43608882,137.63,137.52,101.8986]
[1767905970769,0.43608882,137.63,137.52,101.9051]
[1767905970958,86.37608882,137.63,137.52,101.9051]
[1767905971159,92.92198882,137.63,137.55,6.5495]
[1767905972964,6.98198882,137.63,137.55,6.5495]
[1767905973270,85.94,137.62,137.55,6.5495]
[1767905974366,86.37608882,137.63,137.56,6.549]
[1767905975463,0.43608882,137.63,137.56,6.549]
[1767905975668,85.94,137.65,137.55,101.8816]
[1767905976473,86.89219381,137.65,137.55,101.8816]
[1767905976673,86.89219381,137.65,137.58,6.548]
[1767905976876,85.94,137.64,137.56,101.8742]
[1767905977571,85.94,137.66,137.57,101.866]
[1767905977876,0.95219381,137.67,137.57,101.866]
[1767905978076,85.94,137.66,137.57,101.866]
[1767905978665,85.94,137.66,137.6,6.547]
[1767905978866,86.89219381,137.66,137.6,6.547]
[1767905979078,0.95219381,137.66,137.6,6.547]
[1767905979274,85.94,137.65,137.57,101.866]
[1767905980477,85.94,137.65,137.55,101.8816]
[1767905980478,86.89219381,137.65,137.55,101.8816]
[1767905980970,86.89219381,137.65,137.58,6.5481]
[1767905981169,106.60676126,137.71,137.58,6.5481]
[1767905981170,0.95219381,137.72,137.6,101.844]
[1767905981368,0.95219381,137.71,137.6,101.8417]
[1767905981576,85.92,137.7,137.64,6.5452]
[1767905982072,6.542,137.71,137.64,6.5452]
[1767905982373,93.41469381,137.7,137.62,6.5459]
[1767905982688,86.87219381,137.7,137.62,6.5459]
[1767905983574,6.543,137.69,137.62,6.5459]
[1767905985074,0.95219381,137.68,137.58,101.8545]
[1767905985276,85.92,137.67,137.58,101.8545]
[1767905986186,85.9,137.66,137.58,101.8545]
[1767905986686,85.9,137.66,137.61,6.5466]
[1767905987883,7.49569381,137.68,137.61,6.5466]
[1767905988081,0.95219381,137.79,137.65,101.8082]
[1767905988380,0.95219381,137.85,137.72,101.7563]
[1767905988586,86.85219381,137.83,137.75,6.5399]
[1767905988786,85.9,137.82,137.75,6.5399]
[1767905988979,0.95219381,137.81,137.69,101.7763]
[1767905989289,86.85219381,137.8,137.7,101.7688]
[1767905989488,0.95219381,137.8,137.7,101.7688]
[1767905989684,85.9,137.79,137.7,101.7688]
[1767905989894,86.85219381,137.8,137.72,101.7512]
[1767905990084,0.95219381,137.8,137.72,101.7512]
[1767905990482,85.9,137.81,137.72,101.7512]
[1767905990881,0.95219381,137.83,137.72,101.7512]
[1767905991190,86.85219381,137.82,137.73,6.5407]
[1767905991382,0.95219381,137.81,137.73,6.5407]
[1767905991782,0.95219381,137.8,137.71,6.5416]
[1767905992089,85.9,137.82,137.71,6.5416]
[1767905992090,0.95219381,137.78,137.71,6.5416]
[1767905992290,85.88,137.77,137.71,6.5416]
[1767905992790,85.88,137.77,137.69,6.5426]
[1767905992987,86.83219381,137.78,137.7,101.7706]
[1767905993188,85.88,137.78,137.7,101.7706]
[1767905993486,85.86,137.8,137.72,101.7567]
[1767905994592,0.95219381,137.81,137.75,6.5399]
[1767905994790,0.95219381,137.84,137.74,101.7414]
[1767905994990,85.86,137.82,137.74,101.7414]
[1767905995289,0.95219381,137.84,137.75,101.735]
[1767905995488,86.81219381,137.84,137.75,101.735]
[1767905995993,86.81219381,137.84,137.73,101.7479]
[1767905995994,0.95219381,137.83,137.73,101.7479]
[1767905997694,0.95219381,137.83,137.76,6.5393]
[1767905998284,0.95219381,137.89,137.77,101.7186]
[1767905998490,0.95219381,137.87,137.76,101.7227]
[1767905998688,0.95219381,137.87,137.74,101.7387]
[1767905998886,0.95219381,137.87,137.75,101.7338]
[1767905999288,0.95219381,137.87,137.71,13.0831]
[1767905999289,0.95219381,137.8,137.69,101.7774]
[1767905999585,0.95219381,137.78,137.68,101.7839]
[1767905999787,0.95219381,137.76,137.66,101.8009]
[1767906000090,0.95219381,137.76,137.65,101.8079]
[1767906000091,85.84,137.75,137.65,101.8079]
[1767906000395,85.84,137.78,137.69,101.7788]
[1767906000894,0.95219381,137.79,137.69,101.7788]
[1767906001096,86.79219381,137.79,137.7,101.7708]
[1767906001296,0.95219381,137.79,137.7,101.7708]
[1767906001592,7.48919381,137.82,137.73,6.5408]
[1767906001901,0.95219381,137.82,137.72,101.7569]
[1767906002393,86.79219381,137.82,137.72,101.7569]
[1767906002593,93.32909381,137.82,137.71,101.7633]
[1767906003092,85.84,137.81,137.74,101.7383]
[1767906003285,85.82,137.84,137.73,101.7472]
[1767906003487,1.56115635,137.81,137.74,6.5404]
[1767906004494,1.56115635,137.8,137.71,101.7645]
[1767906004696,1.56115635,137.83,137.72,101.756]
[1767906004897,85.82,137.82,137.72,101.756]
[1767906005697,85.82,137.82,137.74,6.5404]
[1767906005895,87.38115635,137.82,137.74,6.5404]
[1767906006097,1.56115635,137.8,137.72,6.5414]
[1767906006597,8.09955635,137.79,137.7,6.5423]
[1767906006795,93.91955635,137.79,137.68,187.6223]
[1767906007091,93.91945635,137.79,137.71,6.5418]
[1767906007795,87.38115635,137.79,137.71,6.5418]
[1767906009211,1.56115635,137.85,137.73,101.7474]
[1767906009396,1.56115635,137.83,137.72,101.7548]
[1767906009594,1.56115635,137.83,137.71,187.5772]
[1767906010202,1.56115635,137.83,137.71,101.7572]
[1767906010598,8.09815635,137.82,137.71,101.7572]
[1767906011096,1.56115635,137.81,137.71,101.7572]
[1767906011508,1.56115635,137.81,137.72,101.7547]
[1767906012298,1.56115635,137.81,137.75,6.5399]
[1767906013302,1.56115635,137.81,137.71,101.7572]
[1767906013303,1.63459542,137.8,137.71,101.7572]
[1767906013607,85.82,137.82,137.73,101.7492]
[1767906014703,85.82,137.82,137.76,6.5395]
[1767906015000,8.17119542,137.83,137.76,6.5395]
[1767906015200,87.45459542,137.83,137.76,6.5395]
[1767906015602,1.63459542,137.83,137.76,6.5395]
[1767906019407,87.43459542,137.83,137.76,6.5395]
[1767906019812,1.63459542,137.83,137.76,6.5395]
[1767906020021,87.43459542,137.83,137.76,6.5395]
[1767906021013,87.43459542,137.83,137.77,6.5391]
[1767906023008,1.63459542,137.88,137.78,6.5385]
[1767906023212,1.63459542,137.86,137.78,0.14208087]
[1767906023413,87.43459542,137.86,137.78,0.14208087]
[1767906024008,87.43459542,137.86,137.8,6.5377]
[1767906024509,87.43459542,137.86,137.76,0.19304146]
[1767906024510,1.63459542,137.85,137.76,0.19304146]
[1767906025512,1.63459542,137.85,137.79,6.5381]
[1767906027516,1.63459542,137.84,137.76,0.19304146]
[1767906028708,1.63459542,137.84,137.78,6.5386]
[1767906033712,1.63459542,137.84,137.79,6.5381]
[1767906035521,1.84690566,137.87,137.79,0.4748881]
[1767906035721,87.62690566,137.87,137.79,0.4748881]
[1767906036215,94.16140566,137.87,137.81,6.5372]
[1767906036611,1.84690566,137.85,137.76,9.38812895]
[1767906036815,1.84690566,137.85,137.76,0.49666412]
[1767906037820,1.84690566,137.85,137.78,0.51819833]
[1767906039521,1.84690566,137.85,137.81,6.5371]
[1767906040229,85.78,137.87,137.78,0.51819833]
[1767906040623,85.78,137.87,137.81,6.5367]
[1767906040922,87.62690566,137.88,137.79,0.5768296]
[1767906041120,1.84690566,137.87,137.79,0.5768296]
[1767906041618,8.38130566,137.87,137.8,6.5373]
[1767906041924,1.84690566,137.86,137.79,0.5768296]
[1767906043224,1.84690566,137.86,137.81,6.5372]
[1767906043527,1.84690566,137.86,137.79,0.5768296]
[1767906043717,2.8115512,137.89,137.79,0.5768296]
[1767906043718,87.62690566,137.88,137.8,0.62455143]
[1767906043913,1.84690566,137.88,137.8,0.62455143]
[1767906044127,1.84690566,137.88,137.83,6.5361]
[1767906046225,1.84690566,137.88,137.84,6.5358]
[1767906046627,1.84690566,137.91,137.82,0.67062929]
[1767906046823,87.62690566,137.91,137.82,0.67062929]
[1767906047027,87.62690566,137.91,137.85,6.5352]
[1767906047429,1.84690566,137.9,137.85,6.5352]
[1767906049438,8.37830566,137.94,137.86,0.71507212]
[1767906050532,8.37830566,137.94,137.87,6.5343]
[1767906051233,8.37850566,137.93,137.86,0.71507212]
[1767906052528,8.37850566,137.93,137.87,6.5344]
[1767906054331,8.37850566,137.93,137.86,7.24967212]
[1767906055738,94.13850566,137.93,137.86,7.24967212]
[1767906056829,8.37850566,137.93,137.86,7.24967212]
[1767906057631,8.37850566,137.93,137.87,6.5343]
[1767906057933,1.84690566,137.93,137.87,6.5343]
[1767906059132,1.84690566,137.93,137.88,6.5339]
[1767906059835,6.5311,137.94,137.88,6.5339]
[1767906060235,8.37800566,137.94,137.88,6.5339]
[1767906060432,8.37800566,137.94,137.86,7.24957212]
[1767906060636,8.37800566,137.94,137.86,0.71507212]
[1767906060840,6.532,137.93,137.86,0.71507212]
[1767906061435,8.37890566,137.93,137.86,0.71507212]
[1767906061634,1.84690566,137.92,137.84,0.87812401]
[1767906061835,1.84690566,137.91,137.84,0.87812401]
[1767906062038,1.84690566,137.91,137.82,0.87812401]
[1767906062233,1.84690566,137.91,137.76,13.32041992]
[1767906062234,1.84690566,137.88,137.76,0.87812401]
[1767906062435,2.22817843,137.86,137.76,0.87812401]
[1767906063140,8.76307843,137.86,137.79,6.5381]
[1767906064037,2.22817843,137.86,137.8,6.5376]
[1767906067641,2.22817843,137.86,137.8,7.5138832]
[1767906068039,2.32867047,137.88,137.81,7.5134832]
[1767906068235,88.06867047,137.88,137.81,7.5134832]
[1767906068738,89.86782313,137.88,137.81,7.5134832]
[1767906069433,1.79915266,137.86,137.81,7.5134832]
[1767906069638,4.12782313,137.86,137.81,6.5372]
[1767906070544,1.79915266,137.84,137.76,101.7247]
[1767906070839,4.12782313,137.84,137.76,102.73508652]
[1767906071040,4.12782313,137.84,137.77,1.01038652]
[1767906071944,2.32867047,137.83,137.74,115.83809342]
[1767906072144,1.79915266,137.84,137.74,115.83809342]
[1767906072145,4.12782313,137.82,137.74,115.83809342]
[1767906072351,4.12782313,137.82,137.74,102.75759342]
[1767906072730,4.12782313,137.82,137.75,1.03246685]
[1767906072944,2.32867047,137.85,137.77,1.03246685]
[1767906074447,4.12782313,137.84,137.77,1.03246685]
[1767906074635,1.79915266,137.82,137.77,1.03246685]
[1767906074833,1.79915266,137.82,137.78,6.5386]
[1767906075236,1.79915266,137.82,137.77,1.03246685]
[1767906075447,2.32867047,137.84,137.77,7.57116685]
[1767906075448,4.12782313,137.84,137.77,7.57116685]
[1767906076250,101.5971,137.94,137.78,1.06467183]
[1767906076251,2.32867047,137.87,137.78,1.06467183]
[1767906076548,4.12782313,137.87,137.8,1.0751367]
[1767906077144,2.32867047,137.9,137.81,1.0751367]
[1767906077341,4.12782313,137.9,137.81,1.0751367]
[1767906078151,101.5689,137.98,137.83,102.75698636]
[1767906078448,4.12782313,137.94,137.85,1.08548636]
[1767906078645,2.32867047,137.94,137.85,1.08548636]
[1767906079555,2.32867047,137.94,137.88,6.5339]
[1767906079741,2.32867047,137.94,137.87,1.10583486]
[1767906080349,2.32867047,137.94,137.87,102.74763486]
[1767906080756,102.80846693,138.01,137.9,1.11582675]
[1767906080757,2.32867047,137.97,137.9,1.11582675]
[1767906081354,2.32867047,137.97,137.91,6.5323]
[1767906082256,2.32867047,137.97,137.89,6.5333]
[1767906083053,2.32867047,137.97,137.9,6.5328]
[1767906083358,2.32867047,137.96,137.88,1.11582675]
[1767906084260,2.32867047,137.96,137.89,6.5333]
[1767906084952,2.32867047,137.95,137.85,86.91466777]
[1767906085854,2.32867047,137.93,137.86,6.5345]
[1767906087764,2.32867047,137.93,137.86,7.71716835]
[1767906089955,2.32867047,137.93,137.87,6.5343]
[1767906090164,2.32867047,137.95,137.87,1.20081558]
[1767906091456,2.32867047,137.94,137.85,1.21855559]
[1767906092661,2.37834872,137.93,137.87,6.5343]
[1767906093766,2.37834872,137.95,137.88,7.77486428]
[1767906093960,2.37834872,137.97,137.88,1.24106428]
[1767906095566,8.90804872,137.97,137.9,6.5329]
[1767906096271,2.37834872,137.96,137.9,6.5329]
[1767906096464,2.37834872,137.95,137.88,6.5335]
[1767906097566,8.90924872,137.95,137.88,6.5335]
[1767906098572,10.70670739,137.95,137.88,6.5335]
[1767906099471,2.37834872,137.92,137.85,1.26607822]
[1767906101074,2.37834872,137.92,137.85,7.80087822]
[1767906101275,2.37834872,137.92,137.85,1.26607822]
[1767906102470,2.37834872,137.9,137.84,6.5354]
[1767906105180,8.91134872,137.9,137.84,6.5354]
[1767906105478,2.37834872,137.9,137.84,6.5354]
[1767906106575,8.91134872,137.9,137.82,7.85007858]
[1767906106764,2.37834872,137.89,137.82,1.31377858]
[1767906107576,2.37834872,137.89,137.83,6.5362]
[1767906112979,10.70920739,137.89,137.82,1.31377858]
[1767906114588,8.91174872,137.89,137.82,7.85027858]
[1767906114982,2.37834872,137.89,137.83,1.39960644]